{"text_format":"3","workbook":"xlsx","n_sheets":2,"sheets":["KEZDÉS","HAVI SZEMÉLYES KÖLTSÉGVETÉS"],"read":"whole","date_system":"1900"}

{"sheet":"KEZDÉS","index":0,"n_rows":7,"n_cols":2,"rows_kept":7}
[null,"A SABLON ISMERTETÉSE"]
[null,"Ezzel a Havi személyes költségvetés nevű munkalappal nyomon követheti tervezett és tényleges havi bevételeit és tervezett és tényleges költségeit."]
[null,"A megfelelő táblázatokban adhatja meg a különböző kategóriákba tartozó kiadásokat."]
[null,"A sablon automatikusan kiszámítja a tervezett egyenleget, a tényleges egyenleget és a különbözetet."]
[null,"Megjegyzés: "]
[null,"A HAVI SZEMÉLYES KÖLTSÉGVETÉS munkalap A oszlopában további útmutatást olvashat. Ez a szöveg szándékosan van elrejtve. Ha törölni szeretné a szöveget, jelölje ki az A oszlopot, majd nyomja le a DELETE billentyűt. Ha láthatóvá szeretné tenni a szöveget, jelölje ki az A oszlopot, majd módosítsa a betűszínt."]
[null,"Ha többet szeretne megtudni a munkalapon lévő táblázatokról, nyomja le a SHIFT+F10 billentyűkombinációt egy táblázaton belül, válassza a TÁBLÁZAT parancsot, majd a HELYETTESÍTŐ SZÖVEG elemet."]

{"sheet":"HAVI SZEMÉLYES KÖLTSÉGVETÉS","index":1,"n_rows":64,"n_cols":10,"rows_kept":64,"merged":[[3,1,5,1],[3,2,3,3],[3,6,4,8],[3,9,4,9],[4,2,4,3],[5,2,5,3],[5,6,6,8],[5,9,6,9],[7,1,9,1],[7,2,7,3],[7,6,8,8],[7,9,8,9],[8,2,8,3],[9,2,9,3],[58,6,59,8],[58,9,59,9],[60,6,61,8],[60,9,61,9],[62,6,63,8],[62,9,63,9]]}
["Ezen a munkalapon egy havi személyes költségvetést készíthet. Ennek az oszlopnak a celláiban a munkalap használatát megkönnyítő útmutatás olvasható. Első lépésként nyomja le a Le nyílbillentyűt."]
["A jobbra lévő cellában szerepel a munkalap címe. A következő utasítás az A4 cellában található.","HAVI SZEMÉLYES KÖLTSÉGVETÉS"]
[]
["A jobbra lévő cellában a tervezett havi bevétel címkéje szerepel. Az E4 cellában adhatja meg az 1. bevételt, az E5 cellában a plusz bevételt, az E6 cellában pedig láthatja a teljes havi bevételt. A következő utasítás az A6 cellában található.","TERVEZETT HAVI BEVÉTEL","Bevétel 1",null,{"v":4300,"d":"4,300.00 Ft"},null,"TERVEZETT EGYENLEG \n(Tervezett bevétel mínusz kiadások)",null,null,{"$f":"E6-J59","v":{"v":3405,"d":"3,405.00 Ft"}}]
[null,null,"Plusz bevétel",null,{"v":300,"d":"300.00 Ft"}]
["A sablon automatikusan kiszámítja a tervezett egyenleget a J4 cellában, a tényleges egyenleget a J6 cellában, illetve a különbözetet a J8 cellában. A következő utasítás az A8 cellában található.",null,"Teljes havi bevétel",null,{"$f":"SUM(E4:E5)","v":{"v":4600,"d":"4,600.00 Ft"}},null,"TÉNYLEGES EGYENLEG \n(Tényleges bevétel mínusz kiadások)",null,null,{"$f":"E10-J61","v":{"v":3064,"d":"3,064.00 Ft"}}]
[]
["A jobbra lévő cellában a tényleges havi bevétel címkéje szerepel. Az E8 cellában adhatja meg az 1. bevételt, az E9 cellában a plusz bevételt, az E10 cellában pedig láthatja a teljes havi bevételt. A következő utasítás az A12 cellában található.","TÉNYLEGES HAVI BEVÉTEL","Bevétel 1",null,{"v":4000,"d":"4,000.00 Ft"},null,"KÜLÖNBÖZET \n(Tényleges mínusz tervezett)",null,null,{"$f":"J6-J4","v":{"v":-341,"d":"-341.00 Ft"}}]
[null,null,"Plusz bevétel",null,{"v":300,"d":"300.00 Ft"}]
[null,null,"Teljes havi bevétel",null,{"$f":"SUM(E8:E9)","v":{"v":4300,"d":"4,300.00 Ft"}}]
[]
["Adjon meg adatokat a jobbra lévő cellával kezdődő Lakás táblázatban és a G12 cellával kezdődő Szórakozás táblázatban. A következő utasítás az A25 cellában található.","LAKÁS","Tervezett költség","Tényleges költség","Különbözet",null,"SZÓRAKOZÁS","Tervezett költség","Tényleges költség","Különbözet"]
[null,"Jelzálog vagy bérleti díj",{"v":1000,"d":"1,000.00 Ft"},{"v":1000,"d":"1,000.00 Ft"},{"$f":"Lakhatás[[#This Row],[Tervezett költség]]-Lakhatás[[#This Row],[Tényleges költség]]","v":{"v":0,"d":"0.00 Ft"}},null,"Bulizás",null,null,{"$f":"Szórakozás[[#This Row],[Tervezett költség]]-Szórakozás[[#This Row],[Tényleges költség]]","v":{"v":0,"d":"0.00 Ft"}}]
[null,"Telefon",{"v":54,"d":"54.00 Ft"},{"v":100,"d":"100.00 Ft"},{"$f":"Lakhatás[[#This Row],[Tervezett költség]]-Lakhatás[[#This Row],[Tényleges költség]]","v":{"v":-46,"d":"-46.00 Ft"}},null,"Zenei platformok",null,null,{"$f":"Szórakozás[[#This Row],[Tervezett költség]]-Szórakozás[[#This Row],[Tényleges költség]]","v":{"v":0,"d":"0.00 Ft"}}]
[null,"Áram",{"v":44,"d":"44.00 Ft"},{"v":56,"d":"56.00 Ft"},{"$f":"Lakhatás[[#This Row],[Tervezett költség]]-Lakhatás[[#This Row],[Tényleges költség]]","v":{"v":-12,"d":"-12.00 Ft"}},null,"Filmek",null,null,{"$f":"Szórakozás[[#This Row],[Tervezett költség]]-Szórakozás[[#This Row],[Tényleges költség]]","v":{"v":0,"d":"0.00 Ft"}}]
[null,"Gáz",{"v":22,"d":"22.00 Ft"},{"v":28,"d":"28.00 Ft"},{"$f":"Lakhatás[[#This Row],[Tervezett költség]]-Lakhatás[[#This Row],[Tényleges költség]]","v":{"v":-6,"d":"-6.00 Ft"}},null,"Koncertek",null,null,{"$f":"Szórakozás[[#This Row],[Tervezett költség]]-Szórakozás[[#This Row],[Tényleges költség]]","v":{"v":0,"d":"0.00 Ft"}}]
[null,"Víz és csatornázás",{"v":8,"d":"8.00 Ft"},{"v":8,"d":"8.00 Ft"},{"$f":"Lakhatás[[#This Row],[Tervezett költség]]-Lakhatás[[#This Row],[Tényleges költség]]","v":{"v":0,"d":"0.00 Ft"}},null,"Sportesemények",null,null,{"$f":"Szórakozás[[#This Row],[Tervezett költség]]-Szórakozás[[#This Row],[Tényleges költség]]","v":{"v":0,"d":"0.00 Ft"}}]
[null,"Kábeltévé",{"v":34,"d":"34.00 Ft"},{"v":34,"d":"34.00 Ft"},{"$f":"Lakhatás[[#This Row],[Tervezett költség]]-Lakhatás[[#This Row],[Tényleges költség]]","v":{"v":0,"d":"0.00 Ft"}},null,"Színház",null,null,{"$f":"Szórakozás[[#This Row],[Tervezett költség]]-Szórakozás[[#This Row],[Tényleges költség]]","v":{"v":0,"d":"0.00 Ft"}}]
[null,"Szemétdíj",{"v":10,"d":"10.00 Ft"},{"v":10,"d":"10.00 Ft"},{"$f":"Lakhatás[[#This Row],[Tervezett költség]]-Lakhatás[[#This Row],[Tényleges költség]]","v":{"v":0,"d":"0.00 Ft"}},null,"Egyéb",null,null,{"$f":"Szórakozás[[#This Row],[Tervezett költség]]-Szórakozás[[#This Row],[Tényleges költség]]","v":{"v":0,"d":"0.00 Ft"}}]
[null,"Karbantartás és javítások",{"v":23,"d":"23.00 Ft"},{"v":0,"d":"0.00 Ft"},{"$f":"Lakhatás[[#This Row],[Tervezett költség]]-Lakhatás[[#This Row],[Tényleges költség]]","v":{"v":23,"d":"23.00 Ft"}},null,"Egyéb",null,null,{"$f":"Szórakozás[[#This Row],[Tervezett költség]]-Szórakozás[[#This Row],[Tényleges költség]]","v":{"v":0,"d":"0.00 Ft"}}]
[null,"Kellékek",{"v":0,"d":"0.00 Ft"},{"v":0,"d":"0.00 Ft"},{"$f":"Lakhatás[[#This Row],[Tervezett költség]]-Lakhatás[[#This Row],[Tényleges költség]]","v":{"v":0,"d":"0.00 Ft"}},null,"Egyéb",null,null,{"$f":"Szórakozás[[#This Row],[Tervezett költség]]-Szórakozás[[#This Row],[Tényleges költség]]","v":{"v":0,"d":"0.00 Ft"}}]
[null,"Egyéb",{"v":0,"d":"0.00 Ft"},{"v":0,"d":"0.00 Ft"},{"$f":"Lakhatás[[#This Row],[Tervezett költség]]-Lakhatás[[#This Row],[Tényleges költség]]","v":{"v":0,"d":"0.00 Ft"}},null,"Részösszeg",null,null,{"$f":"SUBTOTAL(109,Szórakozás[Különbözet])","v":{"v":0,"d":"0.00 Ft"}}]
[null,"Részösszeg",null,null,{"$f":"SUBTOTAL(109,Lakhatás[Különbözet])","v":{"v":-41,"d":"-41.00 Ft"}}]
[{"$nulls":6},"HITELEK","Tervezett költség","Tényleges költség","Különbözet"]
["Adjon meg adatokat a jobbra lévő cellával kezdődő Közlekedés táblázatban és a G24 cellával kezdődő Hitelek táblázatban. A következő utasítás az A35 cellában található.","KÖZLEKEDÉS","Tervezett költség","Tényleges költség","Különbözet",null,"Személyes",null,null,{"$f":"Hitelek[[#This Row],[Tervezett költség]]-Hitelek[[#This Row],[Tényleges költség]]","v":{"v":0,"d":"0.00 Ft"}}]
[null,"Autó törlesztése",null,null,{"$f":"Közlekedés[[#This Row],[Tervezett költség]]-Közlekedés[[#This Row],[Tényleges költség]]","v":{"v":0,"d":"0.00 Ft"}},null,"Diák",null,null,{"$f":"Hitelek[[#This Row],[Tervezett költség]]-Hitelek[[#This Row],[Tényleges költség]]","v":{"v":0,"d":"0.00 Ft"}}]
[null,"Busz/taxi",null,null,{"$f":"Közlekedés[[#This Row],[Tervezett költség]]-Közlekedés[[#This Row],[Tényleges költség]]","v":{"v":0,"d":"0.00 Ft"}},null,"Hitelkártya",null,null,{"$f":"Hitelek[[#This Row],[Tervezett költség]]-Hitelek[[#This Row],[Tényleges költség]]","v":{"v":0,"d":"0.00 Ft"}}]
[null,"Biztosítás",null,null,{"$f":"Közlekedés[[#This Row],[Tervezett költség]]-Közlekedés[[#This Row],[Tényleges költség]]","v":{"v":0,"d":"0.00 Ft"}},null,"Hitelkártya",null,null,{"$f":"Hitelek[[#This Row],[Tervezett költség]]-Hitelek[[#This Row],[Tényleges költség]]","v":{"v":0,"d":"0.00 Ft"}}]
[null,"Engedélyek",null,null,{"$f":"Közlekedés[[#This Row],[Tervezett költség]]-Közlekedés[[#This Row],[Tényleges költség]]","v":{"v":0,"d":"0.00 Ft"}},null,"Hitelkártya",null,null,{"$f":"Hitelek[[#This Row],[Tervezett költség]]-Hitelek[[#This Row],[Tényleges költség]]","v":{"v":0,"d":"0.00 Ft"}}]
[null,"Üzemanyag",null,null,{"$f":"Közlekedés[[#This Row],[Tervezett költség]]-Közlekedés[[#This Row],[Tényleges költség]]","v":{"v":0,"d":"0.00 Ft"}},null,"Egyéb",null,null,{"$f":"Hitelek[[#This Row],[Tervezett költség]]-Hitelek[[#This Row],[Tényleges költség]]","v":{"v":0,"d":"0.00 Ft"}}]
[null,"Karbantartás",null,null,{"$f":"Közlekedés[[#This Row],[Tervezett költség]]-Közlekedés[[#This Row],[Tényleges költség]]","v":{"v":0,"d":"0.00 Ft"}},null,"Részösszeg",null,null,{"$f":"SUBTOTAL(109,Hitelek[Különbözet])","v":{"v":0,"d":"0.00 Ft"}}]
[null,"Egyéb",null,null,{"$f":"Közlekedés[[#This Row],[Tervezett költség]]-Közlekedés[[#This Row],[Tényleges költség]]","v":{"v":0,"d":"0.00 Ft"}}]
[null,"Részösszeg",null,null,{"$f":"SUBTOTAL(109,Közlekedés[Különbözet])","v":{"v":0,"d":"0.00 Ft"}},null,"ADÓK","Tervezett költség","Tényleges költség","Különbözet"]
[{"$nulls":6},"Szövetségi",null,null,{"$f":"Adók[[#This Row],[Tervezett költség]]-Adók[[#This Row],[Tényleges költség]]","v":{"v":0,"d":"0.00 Ft"}}]
["Adjon meg adatokat a jobbra lévő cellával kezdődő Biztosítás táblázatban és a G33 cellával kezdődő Adók táblázatban. A következő utasítás az A42 cellában található.","BIZTOSÍTÁS","Tervezett költség","Tényleges költség","Különbözet",null,"Állami",null,null,{"$f":"Adók[[#This Row],[Tervezett költség]]-Adók[[#This Row],[Tényleges költség]]","v":{"v":0,"d":"0.00 Ft"}}]
[null,"Lakás",null,null,{"$f":"Biztosítás[[#This Row],[Tervezett költség]]-Biztosítás[[#This Row],[Tényleges költség]]","v":{"v":0,"d":"0.00 Ft"}},null,"Helyi",null,null,{"$f":"Adók[[#This Row],[Tervezett költség]]-Adók[[#This Row],[Tényleges költség]]","v":{"v":0,"d":"0.00 Ft"}}]
[null,"Egészség",null,null,{"$f":"Biztosítás[[#This Row],[Tervezett költség]]-Biztosítás[[#This Row],[Tényleges költség]]","v":{"v":0,"d":"0.00 Ft"}},null,"Egyéb",null,null,{"$f":"Adók[[#This Row],[Tervezett költség]]-Adók[[#This Row],[Tényleges költség]]","v":{"v":0,"d":"0.00 Ft"}}]
[null,"Élet",null,null,{"$f":"Biztosítás[[#This Row],[Tervezett költség]]-Biztosítás[[#This Row],[Tényleges költség]]","v":{"v":0,"d":"0.00 Ft"}},null,"Részösszeg",null,null,{"$f":"SUBTOTAL(109,Adók[Különbözet])","v":{"v":0,"d":"0.00 Ft"}}]
[null,"Egyéb",null,null,{"$f":"Biztosítás[[#This Row],[Tervezett költség]]-Biztosítás[[#This Row],[Tényleges költség]]","v":{"v":0,"d":"0.00 Ft"}}]
[null,"Részösszeg",null,null,{"$f":"SUBTOTAL(109,Biztosítás[Különbözet])","v":{"v":0,"d":"0.00 Ft"}},null,"MEGTAKARÍTÁSOK VAGY BEFEKTETÉSEK","Tervezett költség","Tényleges költség","Különbözet"]
[{"$nulls":6},"Nyugdíjszámla",null,null,{"$f":"Megtakarítások[[#This Row],[Tervezett költség]]-Megtakarítások[[#This Row],[Tényleges költség]]","v":{"v":0,"d":"0.00 Ft"}}]
["Adjon meg adatokat a jobbra lévő cellával kezdődő Élelmiszer táblázatban és a G40 cellával kezdődő Megtakarítások táblázatban. A következő utasítás az A48 cellában található.","ÉLELMISZER","Tervezett költség","Tényleges költség","Különbözet",null,"Befektetési számla",null,null,{"$f":"Megtakarítások[[#This Row],[Tervezett költség]]-Megtakarítások[[#This Row],[Tényleges költség]]","v":{"v":0,"d":"0.00 Ft"}}]
[null,"Bevásárlás",null,null,{"$f":"Élelmiszer[[#This Row],[Tervezett költség]]-Élelmiszer[[#This Row],[Tényleges költség]]","v":{"v":0,"d":"0.00 Ft"}},null,"Egyéb",null,null,{"$f":"Megtakarítások[[#This Row],[Tervezett költség]]-Megtakarítások[[#This Row],[Tényleges költség]]","v":{"v":0,"d":"0.00 Ft"}}]
[null,"Házon kívüli étkezések",null,null,{"$f":"Élelmiszer[[#This Row],[Tervezett költség]]-Élelmiszer[[#This Row],[Tényleges költség]]","v":{"v":0,"d":"0.00 Ft"}},null,"Részösszeg",null,null,{"$f":"SUBTOTAL(109,Megtakarítások[Különbözet])","v":{"v":0,"d":"0.00 Ft"}}]
[null,"Egyéb",null,null,{"$f":"Élelmiszer[[#This Row],[Tervezett költség]]-Élelmiszer[[#This Row],[Tényleges költség]]","v":{"v":0,"d":"0.00 Ft"}}]
[null,"Részösszeg",null,null,{"$f":"SUBTOTAL(109,Élelmiszer[Különbözet])","v":{"v":0,"d":"0.00 Ft"}},null,"AJÁNDÉKOK ÉS ADOMÁNYOK","Tervezett költség","Tényleges költség","Különbözet"]
[{"$nulls":6},"Jótékonyság 1",null,null,{"$f":"Ajándékok[[#This Row],[Tervezett költség]]-Ajándékok[[#This Row],[Tényleges költség]]","v":{"v":0,"d":"0.00 Ft"}}]
["Adjon meg adatokat a jobbra lévő cellával kezdődő Kisállatok táblázatban és a G46 cellával kezdődő Ajándékok táblázatban. A következő utasítás az A56 cellában található.","KISÁLLATOK","Tervezett költség","Tényleges költség","Különbözet",null,"Jótékonyság 2",null,null,{"$f":"Ajándékok[[#This Row],[Tervezett költség]]-Ajándékok[[#This Row],[Tényleges költség]]","v":{"v":0,"d":"0.00 Ft"}}]
[null,"Élelmezés",null,null,{"$f":"Háziállatok[[#This Row],[Tervezett költség]]-Háziállatok[[#This Row],[Tényleges költség]]","v":{"v":0,"d":"0.00 Ft"}},null,"Jótékonyság 3",null,null,{"$f":"Ajándékok[[#This Row],[Tervezett költség]]-Ajándékok[[#This Row],[Tényleges költség]]","v":{"v":0,"d":"0.00 Ft"}}]
[null,"Egészségügy",null,null,{"$f":"Háziállatok[[#This Row],[Tervezett költség]]-Háziállatok[[#This Row],[Tényleges költség]]","v":{"v":0,"d":"0.00 Ft"}},null,"Részösszeg",null,null,{"$f":"SUBTOTAL(109,Ajándékok[Különbözet])","v":{"v":0,"d":"0.00 Ft"}}]
[null,"Ápolás",null,null,{"$f":"Háziállatok[[#This Row],[Tervezett költség]]-Háziállatok[[#This Row],[Tényleges költség]]","v":{"v":0,"d":"0.00 Ft"}}]
[null,"Játékok",null,null,{"$f":"Háziállatok[[#This Row],[Tervezett költség]]-Háziállatok[[#This Row],[Tényleges költség]]","v":{"v":0,"d":"0.00 Ft"}},null,"JOGI KIADÁSOK","Tervezett költség","Tényleges költség","Különbözet"]
[null,"Egyéb",null,null,{"$f":"Háziállatok[[#This Row],[Tervezett költség]]-Háziállatok[[#This Row],[Tényleges költség]]","v":{"v":0,"d":"0.00 Ft"}},null,"Ügyvéd",null,null,{"$f":"Jogi_kiadások[[#This Row],[Tervezett költség]]-Jogi_kiadások[[#This Row],[Tényleges költség]]","v":{"v":0,"d":"0.00 Ft"}}]
[null,"Részösszeg",null,null,{"$f":"SUBTOTAL(109,Háziállatok[Különbözet])","v":{"v":0,"d":"0.00 Ft"}},null,"Tartásdíj",null,null,{"$f":"Jogi_kiadások[[#This Row],[Tervezett költség]]-Jogi_kiadások[[#This Row],[Tényleges költség]]","v":{"v":0,"d":"0.00 Ft"}}]
[{"$nulls":6},"Kártérítés behajtása",null,null,{"$f":"Jogi_kiadások[[#This Row],[Tervezett költség]]-Jogi_kiadások[[#This Row],[Tényleges költség]]","v":{"v":0,"d":"0.00 Ft"}}]
["Adjon meg adatokat a jobbra lévő cellával kezdődő Személyes kiadások táblázatban és a G52 cellával kezdődő Jogi kiadások táblázatban. A következő utasítás az A59 cellában található.","SZEMÉLYES KIADÁSOK","Tervezett költség","Tényleges költség","Különbözet",null,"Egyéb",null,null,{"$f":"Jogi_kiadások[[#This Row],[Tervezett költség]]-Jogi_kiadások[[#This Row],[Tényleges költség]]","v":{"v":0,"d":"0.00 Ft"}}]
[null,"Egészségügy",null,null,{"$f":"SzemélyesKiadások[[#This Row],[Tervezett költség]]-SzemélyesKiadások[[#This Row],[Tényleges költség]]","v":{"v":0,"d":"0.00 Ft"}},null,"Részösszeg",null,null,{"$f":"SUBTOTAL(109,Jogi_kiadások[Különbözet])","v":{"v":0,"d":"0.00 Ft"}}]
[null,"Haj- és körömápolás",null,null,{"$f":"SzemélyesKiadások[[#This Row],[Tervezett költség]]-SzemélyesKiadások[[#This Row],[Tényleges költség]]","v":{"v":0,"d":"0.00 Ft"}}]
["A sablon automatikusan kiszámítja a teljes tervezett költséget a J59 cellában, a teljes tényleges költséget a J61 cellában, illetve a teljes különbözetet a J63 cellában.","Ruhanemű",null,null,{"$f":"SzemélyesKiadások[[#This Row],[Tervezett költség]]-SzemélyesKiadások[[#This Row],[Tényleges költség]]","v":{"v":0,"d":"0.00 Ft"}},null,"TELJES TERVEZETT KÖLTSÉG",null,null,{"$f":"SUBTOTAL(109,C13:C22,Közlekedés[Tervezett költség],Biztosítás[Tervezett költség],Élelmiszer[Tervezett költség],Háziállatok[Tervezett költség],SzemélyesKiadások[Tervezett költség],Szórakozás[Tervezett költség],Hitelek[Tervezett költség],Adók[Tervezett költség],Megtakarítások[Tervezett költség],Ajándékok[Tervezett költség],H53:H56)","v":{"v":1195,"d":"1,195.00 Ft"}}]
[null,"Tisztító",null,null,{"$f":"SzemélyesKiadások[[#This Row],[Tervezett költség]]-SzemélyesKiadások[[#This Row],[Tényleges költség]]","v":{"v":0,"d":"0.00 Ft"}}]
[null,"Egészségklub",null,null,{"$f":"SzemélyesKiadások[[#This Row],[Tervezett költség]]-SzemélyesKiadások[[#This Row],[Tényleges költség]]","v":{"v":0,"d":"0.00 Ft"}},null,"TELJES TÉNYLEGES KÖLTSÉG",null,null,{"$f":"SUBTOTAL(109,D13:D22,Közlekedés[Tényleges költség],Biztosítás[Tényleges költség],Élelmiszer[Tényleges költség],Háziállatok[Tényleges költség],SzemélyesKiadások[Tényleges költség],Szórakozás[Tényleges költség],Hitelek[Tényleges költség],Adók[Tényleges költség],Megtakarítások[Tényleges költség],Ajándékok[Tényleges költség],I53:I56)","v":{"v":1236,"d":"1,236.00 Ft"}}]
[null,"Szervezeti tagdíjak",null,null,{"$f":"SzemélyesKiadások[[#This Row],[Tervezett költség]]-SzemélyesKiadások[[#This Row],[Tényleges költség]]","v":{"v":0,"d":"0.00 Ft"}}]
[null,"Egyéb",null,null,{"$f":"SzemélyesKiadások[[#This Row],[Tervezett költség]]-SzemélyesKiadások[[#This Row],[Tényleges költség]]","v":{"v":0,"d":"0.00 Ft"}},null,"TELJES KÜLÖNBÖZET",null,null,{"$f":"J59-J61","v":{"v":-41,"d":"-41.00 Ft"}}]
[null,"Részösszeg",null,null,{"$f":"SUBTOTAL(109,SzemélyesKiadások[Különbözet])","v":{"v":0,"d":"0.00 Ft"}}]